Cogmind - Beta 13 @@@ ROGUE MODE // 2024.04.02 @ 19:31:03 Player: Photon Result: Destroyed by as-35482 with Assembled Heavy Rifle Performance ------------- Evolutions (0) 0 Regions Visited (2) 400 Robots Destroyed (18) 90 Value Destroyed (335) 335 Prototype IDs (2) 40 Alien Tech Used (0) 0 Bonus (0) 0 TOTAL SCORE: 865 Bonus ------- None Cogmind --------- Core Integrity 0/250 Matter 173/300 Energy 100/100 System Corruption 2% Temperature Cool (0) Movement Treading (240) Ox1 Location -10/Mines Parts ------- > --- POWER (1) -------- (None) > --- PROPULSION (2) --- Light Treads > --- UTILITY (2) ------ Large Storage Unit Signal Interpreter > --- WEAPON (2) ------- Light Assault Rifle > --- INVENTORY (15) --- Light Ion Engine Light Ion Engine Flight Unit Flight Unit Flight Unit Flight Unit Heat Sink Small Storage Unit Small Battery (100) Weight Redist. System Signal Interpreter ECM Suite Grenade Launcher Grenade Launcher Grenade Launcher Peak State ------------ > --- POWER ------------ Light Nuclear Core > --- PROPULSION ------- Light Treads Light Treads > --- UTILITY ---------- Large Storage Unit Signal Interpreter > --- WEAPON ----------- Particle Gun Assault Rifle > --- INVENTORY -------- Ion Engine Light Ion Engine Hover Unit Flight Unit Flight Unit Heat Sink Small Storage Unit Small Battery Weight Redist. System ECM Suite Grenade Launcher Grenade Launcher Grenade Launcher [Rating: 11] Favorites ----------- Power Light Nuclear Core Engine Ion Engine Power Core Light Nuclear Core Propulsion Light Treads Treads Light Treads Flight Unit Flight Unit Utility Large Storage Unit Device Weight Redist. System Storage Large Storage Unit Processor Signal Interpreter Weapon Particle Gun Energy Gun Particle Gun Ballistic Gun Light Assault Rifle Launcher Grenade Launcher Build | -11 -10 -10 ------- Run | Yrd Mat Min Slots Evolved . | . . . Power . | . . . Propulsion . | . . . Utility . | . . . Weapon . | . . . Parts Attached 29 | 6 23 . Power 6 | 1 5 . Engine 3 | 1 2 . Core 3 | . 3 . Reactor . | . . . Propulsion 8 | 2 6 . Treads 7 | 2 5 . Leg . | . . . Wheel . | . . . Hover . | . . . Flight 1 | . 1 . Utility 6 | 1 5 . Device 2 | . 2 . Storage 3 | 1 2 . Processor 1 | . 1 . Hackware . | . . . Protection . | . . . Artifact . | . . . Weapon 9 | 2 7 . Energy Gun 2 | 1 1 . Energy Cannon . | . . . Ballistic Gun 5 | 1 4 . Ballistic Cannon . | . . . Launcher 2 | . 2 . Special Weapon . | . . . Impact Weapon . | . . . Slashing Weapon . | . . . Piercing Weapon . | . . . Special Melee Weapon . | . . . Unidentified Prototypes . | . . . Parts Lost 5 | . 2 3 Power 1 | . . 1 Propulsion 1 | . . 1 Utility . | . . . Weapon 3 | . 2 1 Highest Loss Streak 3 | . 1 3 To Critical Strikes . | . . . Average Slot Usage (%) 91 | . 91 92 Engine 2 | . 2 . Core 10 | . 10 7 Treads 28 | . 28 28 Storage 14 | . 14 14 Processor 9 | . 9 14 Energy Gun 9 | . 9 14 Ballistic Gun 13 | . 13 14 Naked Turns . | . . . Heaviest Build 49 | 14 49 29 Greatest Support 46 | 40 46 40 Greatest Overweight (x) 3 | 3 1 1 Average Overweight (x) . | . . . Largest Inventory Capacity 20 | 8 20 15 Average Capacity 15 | 7 15 15 Most Carried 19 | 2 19 15 Average Carried 12 | . 12 15 Final Capacity 15 | 8 15 15 Final Carried 15 | 2 15 15 Class Distribution -------------------- 54% | Mutant 45% | Scavenger-Mutant Dominant Class ---------------- Mutant | -10/Materials Scavenger-Mutant | -10/Mines Resources | -11 -10 -10 ----------- Run | Yrd Mat Min Matter Collected 485 | 191 289 5 Remotely . | . . . Salvage Created 377 | . 377 . Parts 35 | . 35 . Haulers Intercepted 2 | . 2 . Recyclers Shooed 1 | . 1 . Parts Field Recycled . | . . . Retrieved Matter . | . . . Parts Self-Destructed . | . . . Prevented . | . . . Kills | -11 -10 -10 ------- Run | Yrd Mat Min Combat Hostiles Destroyed 11 | . 11 . Guns 7 | . 7 . AOE 4 | . 4 . Classes Destroyed 6 | . 6 . Worker 1 | . 1 . Builder 1 | . 1 . Hauler 2 | . 2 . Watcher 3 | . 3 . Swarmer 5 | . 5 . Grunt 6 | . 6 . Best Kill Streak 16 | . 16 . Combat Bots Only 9 | . 9 . Max Kills in Single Turn 4 | . 4 . Gunslinging . | . . . Exploded 2 | . 2 . Melee . | . . . Uniques/NPCs Destroyed . | . . . Combat | -11 -10 -10 -------- Run | Yrd Mat Min Hostile Shots Fired 106 | . 68 38 Missed 25 | . 16 9 Damage Taken 1130 | . 695 435 Core 258 | . 135 123 Absorbed by Shields . | . . . Regen/Repaired (Parts) 24 | . 24 . Core Remaining (%) 100 | 100 . . Volleys Fired 32 | 1 31 . Largest 2 | 1 2 . Hottest 85 | 50 85 . Shots Fired 55 | 1 54 . Gun 49 | 1 48 . Cannon . | . . . Launcher 6 | . 6 . Special . | . . . Kinetic 27 | . 27 . Thermal 22 | 1 21 . Explosive 6 | . 6 . Electromagnetic . | . . . Robot Hit Streak 11 | . 11 . Robot Miss Streak 2 | . 2 . Penetration Max . | . . . Secondary Targets 2 | . 2 . Max Gunslinging Chain 1 | . 1 . Shots Hit Robots 39 | . 39 . Core Hits 30 | . 30 . Critical Kills 1 | . 1 . Critical Parts Destroyed . | . . . Critical Strikes 4 | . 4 . Burn 3 | . 3 . Destroy 1 | . 1 . Melee Attacks . | . . . Impact . | . . . Slashing . | . . . Piercing . | . . . Sneak Attacks . | . . . Combat Hostiles . | . . . Follow-up Attacks . | . . . Damage Inflicted 1003 | . 1003 . Guns 431 | . 431 . Cannons . | . . . Explosions 572 | . 572 . Melee . | . . . Ramming . | . . . Kinetic 222 | . 222 . Thermal 209 | . 209 . Explosive 572 | . 572 . Electromagnetic . | . . . Impact . | . . . Slashing . | . . . Piercing . | . . . Highest Corruption 2 | . 2 2 Average Corruption 2 | . 2 2 Corruption Purged . | . . . Corruption Blocked . | . . . Effects 10 | . 10 . Message Errors 2 | . 2 . Matter Fused 1 | . 1 . Heat Flow Errors 5 | . 5 . Data Loss (minor) 1 | . 1 . Misfires 1 | . 1 . Overload Shots . | . . . Overflow Damage . | . . . Projectiles . | . . . Explosions . | . . . Melee . | . . . Knockbacks . | . . . Impact . | . . . Kinetic . | . . . Secondary . | . . . Self-Inflicted Damage 44 | . 44 . Shots 4 | . 4 . Rammed . | . . . Targets Rammed . | . . . Kicked . | . . . Crushed . | . . . Highest Temperature 237 | . 237 15 Average Temperature 79 | . 80 9 Received Heat Transfer 332 | . 252 80 Siege Activations . | . . . Robots Corrupted . | . . . Combat Hostiles . | . . . Parts Fried . | . . . Impact Corruptions . | . . . Robots Melted . | . . . Combat Hostiles . | . . . Parts Melted 1 | . 1 . Heat Transferred 814 | . 814 . Parts Sabotaged . | . . . Parts Stolen . | . . . Parts Stripped . | . . . Power Chain Reactions . | . . . Alert | -11 -10 -10 ------- Run | Yrd Mat Min Peak Influence 350 | . 350 15 Initial . | . . . Average 91 | . 96 10 Maximum Alert Level 1 | . 1 . Low Security (%) 89 | 100 89 100 Level 1 10 | . 10 . Level 2 . | . . . Level 3 . | . . . Level 4 . | . . . Level 5 . | . . . High Security . | . . . Max Security . | . . . Squads Dispatched 2 | . 2 . Investigation 1 | . 1 . Extermination . | . . . Reinforcement 1 | . 1 . Assault . | . . . Garrison . | . . . Intercept . | . . . Searches Triggered . | . . . Construction Impeded . | . . . Haulers Reinforced . | . . . Active Scanning Responses . | . . . Cargo Convoy Interrupts . | . . . Stealth | -11 -10 -10 --------- Run | Yrd Mat Min Distress Signals 3 | . 3 . Communications Jammed . | . . . Distress Signals . | . . . Times Spotted 39 | . 16 23 Peak Tracking Total 23 | . 6 23 Tactical Retreats . | . . . Traps | -11 -10 -10 ------- Run | Yrd Mat Min Traps Triggered 2 | . 2 . Indirectly . | . . . Trap Hack Attempts . | . . . Triggered . | . . . Disarmed . | . . . Reprogrammed . | . . . Reused . | . . . Traps Extracted . | . . . Installed . | . . . Triggered . | . . . Machines | -11 -10 -10 ---------- Run | Yrd Mat Min Machines Disabled 1 | . 1 . Max in Single Turn 1 | . 1 . Machines Repaired . | . . . Machines Dismantled . | . . . Machines Sabotaged . | . . . Overloaded Fab Kills . | . . . Hacking | -11 -10 -10 --------- Run | Yrd Mat Min Machines Accessed 8 | . 8 . Terminals 6 | . 6 . Fabricators . | . . . Repair Stations 1 | . 1 . Recycling Units 1 | . 1 . Scanalyzers . | . . . Garrison Access . | . . . Total Hacks 16 | . 16 . Successful 10 | . 10 . Failed 6 | . 6 . Catastrophic 1 | . 1 . Database Lockouts . | . . . Manual . | . . . Terminals 11 | . 11 . Fabricators . | . . . Repair Stations 3 | . 3 . Recycling Units 2 | . 2 . Scanalyzers . | . . . Garrison Access . | . . . Terminal Hacks 6 | . 6 . Record 1 | . 1 . Robot Analysis 1 | . 1 . Prototype ID Bank 1 | . 1 . Emergency Access Points 1 | . 1 . Zone Layout 2 | . 2 . Fabricator Hacks . | . . . Repair Station Hacks 3 | . 3 . Scan Component 2 | . 2 . Repair 1 | . 1 . Recycling Unit Hacks 1 | . 1 . Report Inventory 1 | . 1 . Scanalyzer . | . . . Garrison Access Hacks . | . . . Unauthorized Hacks . | . . . Terminals . | . . . Fabricators . | . . . Repair Stations . | . . . Recycling Units . | . . . Scanalyzers . | . . . Garrison Access . | . . . Data Cores Recovered . | . . . Used . | . . . Hacking Detections 4 | . 4 . Full Trace Events . | . . . Feedback Events . | . . . Feedback Blocked . | . . . Robot Schematics Acquired . | . . . Robots Built . | . . . Authchips . | . . . Time . | . . . Total Robot Build Rating . | . . . Part Schematics Acquired . | . . . Parts Built . | . . . Authchips . | . . . Time . | . . . Total Part Build Rating . | . . . Parts Repaired 1 | . 1 . Time 38 | . 38 . Parts Recycled . | . . . Recycled Matter . | . . . Retrieved Matter . | . . . Retrieved Components . | . . . Parts Scanalyzed . | . . . Part Schematics Acquired . | . . . Parts Damaged . | . . . Bothacking | -11 -10 -10 ------------ Run | Yrd Mat Min Used RIF Installer . | . . . Robots Hacked . | . . . Non-combat . | . . . Combat . | . . . Robot Hacks Applied . | . . . Relay Couplers Released . | . . . Fabnet Peak Effective % . | . . . Robots Rewired . | . . . Allies Hacked . | . . . Hacks Repelled . | . . . Allies | -11 -10 -10 -------- Run | Yrd Mat Min Total Allies . | . . . Largest Group . | . . . Highest-Rated Group . | . . . Highest-Rated Ally . | . . . Total Orders . | . . . Ally Attacks . | . . . Total Damage . | . . . Kills . | . . . Allies Corrupted . | . . . Allies Melted . | . . . Intel | -11 -10 -10 ------- Run | Yrd Mat Min Robot Analysis Total 1 | . 1 . Derelict Logs Recovered . | . . . Drone Launches . | . . . Drone Recoveries . | . . . Exploration | -11 -10 -10 ------------- Run | Yrd Mat Min Turns Passed 1652 | 85 1553 14 Spaces Moved 837 | 49 780 8 Core 12 | 12 . . Treads 825 | 37 780 8 Legs . | . . . Wheels . | . . . Hover . | . . . Flight . | . . . Fastest Speed 50 | 50 160 160 Average Speed 168 | 148 169 170 Slowest Speed 240 | 200 240 240 Overloaded Moves . | . . . Propulsion Burnouts . | . . . Robots Hopped . | . . . Cave-ins Triggered . | . . . Exploration Rate (%) 35 | 5 96 6 Regions Visited 2 Branch Regions 1 Pre-discovered Areas . | . . . Known Exits Taken 1 | . 1 . Unknown Exits Taken 1 | 1 . . Scrap Searched . | . . . Spaces Dug . | . . . Terrain Destroyed 30 | . 30 . Melee . | . . . Projectile . | . . . AOE 30 | . 30 . Terrain Rammed . | . . . Walls Destroyed . | . . . Machines Disabled . | . . . Actions | -11 -10 -10 --------- Run | Yrd Mat Min Total 1022 | 57 957 8 Wait 84 | . 84 . Move 835 | 48 779 8 Hop . | . . . Pick Up 27 | 2 25 . Fast Attach 9 | 6 3 . Attach 5 | . 5 . Detach 3 | . 3 . Swap 15 | . 15 . Drop 12 | . 12 . Fire 32 | 1 31 . Melee . | . . . Ram . | . . . Kick . | . . . Crush . | . . . Escape Stasis . | . . . Rewire . | . . . Trap . | . . . Miscellaneous . | . . . Route ------- -11/Scrapyard -10/Materials (discovered 5 exits: *Mat x3 / *Min x2) -10/Mines History --------- Turn | Location | Event 19 | -11/Scrapyard | Discovered new exit (range 15) 86 | -11/Scrapyard | Entered Materials 346 | -10/Materials | Build established: Mutant 362 | -10/Materials | Destroyed 9 combat bots 591 | -10/Materials | Discovered new exit (range 16) 637 | -10/Materials | Identified exit to Materials 801 | -10/Materials | Discovered exit to Materials (range 15) 820 | -10/Materials | Core integrity fell below 50% 893 | -10/Materials | Repaired Lgt. Nuclear Core 1204 | -10/Materials | Build established: Scavenger-Mutant 1271 | -10/Materials | Discovered new exit (range 14) 1321 | -10/Materials | Identified exit to Mines 1393 | -10/Materials | Discovered exit to Materials (range 16) 1621 | -10/Materials | Discovered exit to Mines (range 7) 1639 | -10/Materials | Entered Mines 1640 | -10/Mines | Assembled infested the area 1646 | -10/Mines | Met a Derelict bent on vengeance 1648 | -10/Mines | Core integrity fell below 20% 1653 | -10/Mines | Destroyed by as-35482 with Assembled Heavy Rifle Last Messages --------------- 01545_ System corrupted: Heat flow error (+125). 01584_ T-07 Excavator is excavating. 01586_ Triggered Alarm Trap. 01586_ An alarm sounds. 01586_ ALERT: Alarm triggered, dispatching investigation squad. 01588_ System corrupted: Component data lost. 01621_ EXIT=FOUND: MINES 01630_ System corrupted: Heat flow error (+250). LOCATION=MINES GOAL=ESCAPE Something is scanning the area. 01640_ ALERT: Infestation in the mines, dispatching Demolisher response squad. [Achievement: Hunted] 01642_ S-10 Pest destroyed. 01644_ Acquired 5 matter. 01644_ S-10 Pest destroyed. 01649_ Lgt. Nuclear Core destroyed. 01650_ Lgt. Treads destroyed. 01650_ Particle Gun destroyed. Map ----- +----------------------------------------------------+ | ?????????????????????????????????????????????????? | | ?????????????????????????????????????????????????? | | ?????????????????????????????????????????????????? | | ?????????????????????????????????????????????????? | | ?????????????????????????????????????????????????? | | ?????????????????????????????????????????????????? | | ?????????????????????????????????????????????????? | | ?????????????????????????????????????????????????? | | ?????????????????????????????????????????????????? | | ?????????????????????????????? ??????????????????? | | ?????????????????????????????? ??????????????????? | | ?????????????????????????????# ??????????????????? | | ???????????????????????????## ??????????????????? | | ???????????????????????????# ??????????????????? | | ??????????????????????????? #??????????????????? | | ???????????????????????????# #??????????????????? | | ???????????????????????????# #??????????????????? | | ???????????????????????????# ##?????????????????? | | ???????????????????????????# ??????????????????? | | ???????????????????????????# #?????#????????????? | | ???????????????????????????#aa#???? #????????????? | | ?????????????????????????### #####a##### <##????? | | ?????????????????????????# aaaa* #????? | | ?????????????????????????# a*a aa #??? | | ?????????????# ######a a""" ## #?? | | ??????????????# @aa """ #????? ??? | | ???????????????# ####### aa""" #???????????? | | ?????????????????????????# aa #???????????? | | ?????????????????????????#############???????????? | | ?????????????????????????????????????????????????? | | ?????????????????????????????????????????????????? | | | | | | | | | | | | | | | | | | | | | | | | | | | | | | | | | | | | | | | +----------------------------------------------------+ Best States ------------- Heat Dissipation 25 Energy Generation 14 Energy Capacity 250 Matter Stores 231 Matter Capacity 300 Sight Range 16 Terrain Scan Density 10 Additional Mass Support 6 Evasion (%) 40 Recoil Reduction 2 Item Schematics ----------------- None Robot Schematics ------------------ None Fabricated ------------ Nothing Alien Tech Used ----------------- None Achievements -------------- Hunted Challenges ------------ None Game ------ Seed CloakingEfficiencyCloak Manual? 0 Play Time 00:50:54 Cumulative 11.1 hours Start 2024.04.02 @ 14:01:03 End 2024.04.02 @ 19:31:03 Sessions 3 Manual Loads 0 Difficulty Rogue Special Mode None Game No. 4 Rogue 4 Adventurer 0 Explorer 0 Win Type - Total 0 Types 0/0/0/0/0/0/0/0/0 Lore% 5 Gallery% 8 Achievement% 9 Wizard Run 0 Options --------- Layout 0 ASCII 1 Keyboard 0 Movement Mouse Keybinds 0 Fullscreen 2 Font 18/Terminus Map View 76x50 Zoom Use 0% Tactical HUD 1 Map Filters NONE Filters NONE Steam 0 RUN: fb60bdf3-90a5-4190-8437-48d8936202f3